Cogmind - Beta 15 @@@ ROGUE MODE // 2025.06.01 @ 11:49:19 Player: arkn Result: Destroyed by G-34 Mercenary with Small Laser Performance ------------- Evolutions (0) 0 Regions Visited (1) 200 Robots Destroyed (16) 80 Value Destroyed (174) 174 Prototype IDs (0) 0 Alien Tech Used (0) 0 Bonus (0) 0 TOTAL SCORE: 454 Bonus ------- None Cogmind --------- Core Integrity 0/250 Matter 190/300 Energy 78/100 System Corruption 0% Temperature Cool (16) Movement Treading (160) Location -10/Materials Parts ------- > --- POWER (1) -------- (None) > --- PROPULSION (2) --- Light Treads Light Treads > --- UTILITY (2) ------ Large Storage Unit Improved Terrain Scanner > --- WEAPON (2) ------- Light Assault Rifle Light Cannon > --- INVENTORY (15) --- Light Ion Engine Light Ion Engine Light Treads Compact Wheel Compact Wheel Medium Storage Unit Structural Scanner Structural Scanner Seismic Detector Light Assault Rifle Mining Laser Peak State ------------ > --- POWER ------------ Ion Engine > --- PROPULSION ------- Light Treads Light Treads > --- UTILITY ---------- Large Storage Unit Improved Terrain Scanner > --- WEAPON ----------- Assault Rifle Light Assault Rifle > --- INVENTORY -------- Light Ion Engine Light Ion Engine Light Treads Light Treads Compact Wheel Compact Wheel Medium Storage Unit Structural Scanner Structural Scanner Seismic Detector Light Assault Rifle Light Assault Rifle Light Cannon Mining Laser [Rating: 10] Favorites ----------- Power Ion Engine Engine Ion Engine Propulsion Light Treads Treads Light Treads Utility Seismic Detector Device Seismic Detector Storage Large Storage Unit Weapon Assault Rifle Ballistic Gun Assault Rifle Ballistic Cannon Light Cannon Build | -11 -10 ------- Run | Yrd Mat Slots Evolved . | . . Power . | . . Propulsion . | . . Utility . | . . Weapon . | . . Parts Attached 15 | 7 8 Power 2 | 1 1 Engine 2 | 1 1 Core . | . . Reactor . | . . Propulsion 4 | 2 2 Treads 4 | 2 2 Leg . | . . Wheel . | . . Hover . | . . Flight . | . . Utility 5 | 2 3 Device 2 | 1 1 Storage 3 | 1 2 Processor . | . . Hackware . | . . Protection . | . . Artifact . | . . Weapon 4 | 2 2 Energy Gun . | . . Energy Cannon . | . . Ballistic Gun 3 | 2 1 Ballistic Cannon 1 | . 1 Launcher . | . . Special Weapon . | . . Impact Weapon . | . . Slashing Weapon . | . . Piercing Weapon . | . . Special Melee Weapon . | . . Unidentified Prototypes . | . . Parts Lost 5 | . 5 Power 1 | . 1 Propulsion 2 | . 2 Utility . | . . Weapon 2 | . 2 Highest Loss Streak 5 | . 5 To Critical Strikes . | . . Average Backups 9 | 3 10 Power 1 | . 1 Propulsion 3 | 2 3 Utility 2 | . 3 Weapon 1 | . 2 Tool/Special . | . . Unused Backups 11 | 1 10 Power 1 | . 1 Propulsion 5 | . 5 Utility 2 | . 2 Weapon 3 | 1 2 Tool/Special . | . . Average Slot Usage (%) 99 | . 99 Engine 13 | . 13 Treads 27 | . 27 Device 14 | . 14 Storage 14 | . 14 Ballistic Gun 27 | . 27 Peak Build Rating 10 | 7 10 Average Rating 7 | 5 7 On Entrance 3 | . 7 Naked Turns . | . . Heaviest Build 29 | 12 29 Greatest Support 40 | 40 40 Greatest Overweight (x) 1 | 1 . Average Overweight (x) . | . . Largest Inventory Capacity 15 | 8 15 Average Capacity 11 | 7 12 Most Carried 15 | 7 15 Average Carried 9 | 3 10 Final Capacity 15 | 8 15 Final Carried 11 | 7 11 Class Distribution -------------------- 100% | Mutant Dominant Class ---------------- Mutant | -10/Materials Resources | -11 -10 ----------- Run | Yrd Mat Matter Collected 409 | 306 103 Remotely . | . . Salvage Created 396 | 102 294 Parts 35 | 5 30 Haulers Intercepted 2 | . 2 Recyclers Shooed . | . . Parts Field Recycled . | . . Retrieved Matter . | . . Parts Self-Destructed . | . . Prevented . | . . Kills | -11 -10 ------- Run | Yrd Mat Combat Hostiles Destroyed 9 | . 9 Guns 8 | . 8 Cannons 1 | . 1 Classes Destroyed 6 | 2 4 Tunneler 3 | 2 1 Hauler 2 | . 2 Recycler 1 | 1 . Watcher 1 | . 1 Swarmer 8 | . 8 Grunt 1 | . 1 Best Kill Streak 4 | 2 4 Combat Bots Only 3 | . 3 Max Kills in Single Turn 2 | 1 2 Gunslinging 1 | . 1 Exploded . | . . Melee . | . . Uniques/NPCs Destroyed . | . . Combat | -11 -10 -------- Run | Yrd Mat Hostile Shots Fired 131 | . 131 Missed 35 | . 35 Hits 96 | . 96 Projectile 96 | . 96 Critical Strikes 2 | . 2 Damage Taken 952 | . 952 Core 261 | . 261 Absorbed by Shields . | . . Core Remaining (%) 100 | 100 . Volleys Fired 49 | 9 40 Largest 2 | 2 2 Hottest 50 | 40 50 Shots Fired 94 | 18 76 Gun 90 | 18 72 Cannon 4 | . 4 Launcher . | . . Special . | . . Kinetic 94 | 18 76 Thermal . | . . Explosive . | . . Electromagnetic . | . . Robot Hit Streak 7 | 7 6 Robot Miss Streak 4 | 1 4 Penetration Max . | . . Secondary Targets 3 | . 3 Max Gunslinging Chain 1 | . 1 Shots Hit Robots 56 | 13 43 Core Hits 27 | 5 22 Critical Kills . | . . Critical Parts Destroyed . | . . Critical Strikes . | . . Melee Attacks . | . . Impact . | . . Slashing . | . . Piercing . | . . Sneak Attacks . | . . Combat Hostiles . | . . Follow-up Attacks . | . . Damage Inflicted 664 | 132 532 Guns 593 | 132 461 Cannons 71 | . 71 Explosions . | . . Melee . | . . Ramming . | . . Kinetic 664 | 132 532 Thermal . | . . Explosive . | . . Electromagnetic . | . . Impact . | . . Slashing . | . . Piercing . | . . Highest Corruption . | . . Average Corruption . | . . Corruption Purged . | . . Corruption Blocked . | . . Overload Shots . | . . Overflow Damage . | . . Projectiles . | . . Explosions . | . . Melee . | . . Knockbacks 1 | . 1 Impact . | . . Kinetic 1 | . 1 Secondary . | . . Self-Inflicted Damage . | . . Shots . | . . Rammed . | . . Targets Rammed . | . . Kicked . | . . Crushed . | . . Highest Temperature 54 | . 54 Average Temperature 24 | . 24 Received Heat Transfer 330 | . 330 Siege Activations . | . . Martial Activations . | . . Shielding Activations . | . . Robots Disrupted . | . . Combat Hostiles . | . . Robots Corrupted . | . . Combat Hostiles . | . . Parts Fried . | . . Impact Corruptions . | . . Robots Melted . | . . Combat Hostiles . | . . Parts Melted . | . . Heat Transferred . | . . Parts Sabotaged . | . . Parts Stolen . | . . Parts Stripped . | . . Power Chain Reactions . | . . Alert | -11 -10 ------- Run | Yrd Mat Maximum Alert Level . | . . Low Security (%) 100 | 100 100 Level 1 . | . . Level 2 . | . . Level 3 . | . . Level 4 . | . . Level 5 . | . . High Security . | . . Max Security . | . . Peak Influence 153 | 5 153 Initial . | . . Average 27 | 1 33 Influence Increases 309 | 15 294 Destroy 0b10 Robot/C 180 | . 180 Destroy 0b10 Robot/NC 35 | 15 20 Destroy Leader 46 | . 46 Successful Hack 3 | . 3 Partial Spotted 15 | . 15 Lose Combat Pursuer 30 | . 30 Influence Decreases 186 | 15 171 Time Decay 136 | 15 121 Lost Part 50 | . 50 Squads Dispatched 2 | . 2 Investigation 1 | . 1 Extermination . | . . Reinforcement 1 | . 1 Assault . | . . Garrison . | . . Intercept . | . . Searches Triggered . | . . Construction Impeded . | . . Haulers Reinforced . | . . Active Scanning Responses . | . . Cargo Convoy Interrupts . | . . Stealth | -11 -10 --------- Run | Yrd Mat Distress Signals 4 | . 4 Communications Jammed . | . . Distress Signals . | . . Times Spotted 18 | . 18 Peak Tracking Total 6 | . 6 Tactical Retreats 2 | . 2 Traps | -11 -10 ------- Run | Yrd Mat Traps Triggered . | . . Indirectly . | . . Trap Hack Attempts . | . . Triggered . | . . Disarmed . | . . Reprogrammed . | . . Reused . | . . Traps Extracted . | . . Installed . | . . Triggered . | . . Machines | -11 -10 ---------- Run | Yrd Mat Machines Disabled . | . . Max in Single Turn . | . . Machines Repaired . | . . Machines Dismantled . | . . Machines Sabotaged . | . . Overloaded Fab Kills . | . . Hacking | -11 -10 --------- Run | Yrd Mat Machines Accessed 2 | . 2 Terminals 2 | . 2 Fabricators . | . . Repair Stations . | . . Recycling Units . | . . Scanalyzers . | . . Garrison Access . | . . Total Hacks 7 | . 7 Successful 6 | . 6 Failed 1 | . 1 Catastrophic . | . . Database Lockouts . | . . Manual 7 | . 7 Terminals 7 | . 7 Fabricators . | . . Repair Stations . | . . Recycling Units . | . . Scanalyzers . | . . Garrison Access . | . . Terminal Hacks 3 | . 3 Terminal Index 1 | . 1 Locate Traps 1 | . 1 Zone Layout 1 | . 1 Fabricator Hacks . | . . Repair Station Hacks . | . . Recycling Unit Hacks . | . . Scanalyzer . | . . Garrison Access Hacks . | . . Unauthorized Hacks 3 | . 3 Terminals 3 | . 3 Track 1 | . 1 Assimilate 1 | . 1 Botnet 1 | . 1 Fabricators . | . . Repair Stations . | . . Recycling Units . | . . Scanalyzers . | . . Garrison Access . | . . Data Cores Recovered . | . . Used . | . . Hacking Detections 2 | . 2 Full Trace Events . | . . Feedback Events . | . . Feedback Blocked . | . . Robot Schematics Acquired . | . . Robots Built . | . . Authchips . | . . Time . | . . Total Robot Build Rating . | . . Part Schematics Acquired . | . . Parts Built . | . . Authchips . | . . Time . | . . Total Part Build Rating . | . . Parts Repaired . | . . Time . | . . Parts Recycled . | . . Recycled Matter . | . . Retrieved Matter . | . . Retrieved Components . | . . Parts Scanalyzed . | . . Part Schematics Acquired . | . . Parts Damaged . | . . Bothacking | -11 -10 ------------ Run | Yrd Mat Used RIF Installer . | . . Robots Hacked . | . . Non-combat . | . . Combat . | . . Robot Hacks Applied . | . . Relay Couplers Released . | . . Fabnet Peak Effective % . | . . Robots Rewired . | . . Allies Hacked . | . . Hacks Repelled . | . . Allies | -11 -10 -------- Run | Yrd Mat Total Allies 1 | . 1 Largest Group 1 | . 1 Highest-Rated Group 10 | . 10 Highest-Rated Ally 10 | . 10 Total Orders . | . . Ally Attacks . | . . Total Damage . | . . Kills . | . . Allies Corrupted . | . . Allies Melted . | . . Intel | -11 -10 ------- Run | Yrd Mat Active Infowar (turns) 653 | 32 621 Terrain 19 | . 19 Seismic 634 | 32 602 Robot Analysis Total . | . . Derelict Logs Recovered . | . . Drone Launches . | . . Drone Recoveries . | . . Exploration | -11 -10 ------------- Run | Yrd Mat Turns Passed 769 | 148 621 Spaces Moved 321 | 68 253 Core 5 | 5 . Treads 316 | 63 253 Legs . | . . Wheels . | . . Hover . | . . Flight . | . . Fastest Speed 50 | 50 160 Average Speed 158 | 153 160 Slowest Speed 160 | 160 160 Overloaded Moves . | . . Propulsion Burnouts . | . . Robots Hopped . | . . Potential Cave-ins . | . . Cave-ins Triggered . | . . Exploration Rate (%) 24 | 5 44 Regions Visited 1 Branch Regions . Pre-discovered Areas . | . . Known Exits Taken . | . . Unknown Exits Taken 1 | 1 . Scrap Searched . | . . Spaces Dug . | . . Terrain Destroyed . | . . Melee . | . . Projectile . | . . AOE . | . . Terrain Rammed . | . . Walls Destroyed . | . . Machines Disabled . | . . Actions | -11 -10 --------- Run | Yrd Mat Total 496 | 93 403 Wait 90 | 1 89 Move 320 | 67 253 Hop . | . . Pick Up 17 | 8 9 Fast Attach 7 | 7 . Attach 4 | . 4 Detach . | . . Swap 4 | . 4 Drop 5 | 1 4 Fire 49 | 9 40 Melee . | . . Ram . | . . Kick . | . . Crush . | . . Escape Stasis . | . . Rewire . | . . Trap . | . . Miscellaneous . | . . Route ------- -11/Scrapyard -10/Materials (discovered 3 exits: [*Mat] / [*Min] / [*Sub]) History --------- Turn | Location | Event 5 | -11/Scrapyard | Discovered new exit (range 15) 149 | -11/Scrapyard | Entered Materials 315 | -10/Materials | Build established: Mutant 375 | -10/Materials | Discovered new exit (range 14) 529 | -10/Materials | Discovered new exit (range 8) 606 | -10/Materials | Discovered new exit (range 13) 745 | -10/Materials | Core integrity fell below 50% 761 | -10/Materials | Core integrity fell below 20% 770 | -10/Materials | Destroyed by G-34 Mercenary with Small Laser Last Messages --------------- 00682_ S-10 Pest destroyed. 00700_ Acquired 14 matter. 00701_ Acquired 15 matter. 00703_ ALERT: Hostiles spotted, dispatching reinforcements to Terminal M006. 00703_ Acquired 16 matter. 00712_ A-02 Transporter destroyed. 00713_ W-16 Scout sends out distress signal. 00716_ Acquired Lgt. Treads. 00723_ Acquired Lgt. Assault Rifle. 00730_ K-01 Serf collects debris. 00748_ Lgt. Treads destroyed. 00754_ Assault Rifle destroyed. 00758_ ALERT: Alarm triggered, dispatching investigation squad. 00758_ G-47 Trooper knocked back. 00760_ Lgt. Assault Rifle destroyed. 00760_ Lgt. Treads destroyed. 00764_ Critical hit (Burn: +37). 00766_ G-47 Trooper destroyed. 00766_ Ion Engine destroyed. 00770_ K-01 Serf collects debris. Map ----- +----------------------------------------------------+ | #+#######?????# ????????????????????????????? | | #?????# ????????????????????????????? | | "T" #?????# ????????????????????????????? | | #?????## ### ????????????????????????????? | | #??????# #?##????????????????????????????? | | #??????# #?????????????? ????????????????? | | """ #??????#*#???????????? ?????????????????? | | """ #??????#!#???????????"""?????????????????? | | """ #??????#%#????###### """?????????????????? | | #???####=##???# + "???????????????????? | | ##+########## = #???# k #?????????????????????? | | ##### #?????????????????????? | | #?????????????????????? | | %%% ###### #?????????????????????? | | ##/########## #????# #?????????????????????? | | == ####+#####??# #?????????????????????? | | =* # ?## #???????? ????????????? | | ! # """"""" ??# #???? ????????????????? | | # """"""" #?# #?????????????????????? | | ## """"""" #?# #???????????#?????????? | | #<########## """"""" #?# #????????? #?????????? | | ###????????# """"""???## ^^##??????? ##????????? | | !##????????#??????????# ^^k####### #####????? | | !#???????????????????# g!%! = ???? | | #???????????????????# g g%!%[%=%[" ???? | | !#???????????????????# @ = = %* ???? | | !#???????????????????# =####### #####????? | | !##???????????????????#######???????#+####???????? | | ##???????????????????????????????????????????????? | | ?????????????????????????#???????????????????????? | | ????????????????????#????????????????????????????? | | ????????????????????#????????????????????????????? | | ?????????????????????????????????????????????????? | | ?????????????????????#???????????????????????????? | | ?????????????????????????????????????????????????? | | ?????????????????????????????????????????????????? | | ?????????????????????????????????????????????????? | | ??????????????????#?????#????????????????????????? | | | | | | | | | | | | | | | | | | | | | | | | | +----------------------------------------------------+ Best States ------------- Heat Dissipation 25 Energy Generation 10 Energy Capacity 250 Matter Stores 300 Matter Capacity 300 Sight Range 16 Terrain Scan Range 16 Terrain Scan Density 10 Evasion (%) 40 Recoil Reduction 2 Item Schematics ----------------- None Robot Schematics ------------------ None Fabricated ------------ Nothing Repaired ---------- Nothing Alien Tech Used ----------------- None Achievements -------------- None Challenges ------------ None Game ------ Seed MasterTrackerReplicator Manual? 0 Play Time 00:06:37 Cumulative 170.2 hours Start 2025.05.30 @ 21:23:49 End 2025.06.01 @ 11:49:19 Sessions 1 Manual Loads 0 Difficulty Rogue Special Mode None Game No. 76 Rogue 76 Adventurer 0 Explorer 0 Win Type - Total 3 Types 3/0/0/0/0/0/0/0/0/0 Lore% 48 Gallery% 52 Achievement% 55 Wizard Run 0 Options --------- Layout 0 ASCII 0 Keyboard 0 Movement Numpad Keybinds 0 Fullscreen 2 Font 24/Smallcaps Map View 113x50 Zoom Use 0% Tactical HUD 1 Map Filters NONE Filters NONE Steam 1 RUN: ae65b363-cde2-48eb-81aa-bebbbcdf6891